{"text_format":"1","workbook":"xlsx","n_sheets":2,"sheets":["Cведения о заемщике","Решение (не редактировать)!!!!!"],"not_rendered":{"charts":0,"images":0,"macros":1,"external_links":0,"defined_names":5,"comments":2,"pivot_tables":0},"unopened":[],"bounds":{"document_bytes":16777216,"sheet_cells":100000,"rows_first":2000,"rows_last":500,"rows_between":2000,"halvings":0,"cell_chars":16384,"cell_head_chars":4096},"cells_cut":0,"cells_raw":0,"read":"whole","date_system":"1900"}

{"sheet":"Cведения о заемщике","index":0,"n_rows":87,"n_cols":23,"rows_kept":87,"cut":false,"hidden":false,"merged":[[59,2,59,7],[60,2,60,7],[61,2,61,7],[62,2,62,7],[63,2,63,7],[64,2,64,7],[65,2,65,7],[66,2,66,7],[67,2,67,7],[80,0,80,4],[81,0,81,4],[82,0,82,4],[80,5,80,14],[81,5,81,14],[82,5,82,14],[71,0,71,4],[71,5,71,10],[71,11,71,14],[72,0,72,4],[73,0,73,4],[74,0,74,4],[75,0,75,4],[72,5,72,10],[78,9,78,10],[75,11,75,14],[76,0,76,14],[75,5,75,10],[51,0,51,14],[52,0,52,6],[52,7,52,14],[53,0,53,6],[53,7,53,14],[54,0,54,6],[54,7,54,14],[39,13,39,14],[46,12,46,14],[45,0,45,1],[45,2,45,3],[45,4,45,7],[45,8,45,11],[45,12,45,14],[40,0,40,14],[41,2,44,3],[41,12,44,14],[41,4,44,7],[41,8,44,11],[39,0,39,12],[30,9,30,14],[50,0,50,1],[50,2,50,3],[48,0,48,1],[48,2,48,3],[48,4,48,7],[48,8,48,11],[48,12,48,14],[31,0,31,6],[49,0,49,1],[49,2,49,3],[49,4,49,7],[49,8,49,11],[49,12,49,14],[47,8,47,11],[47,12,47,14],[50,4,50,7],[50,8,50,11],[37,0,37,14],[31,7,31,12],[31,13,31,14],[32,0,32,6],[32,7,32,12],[32,13,32,14],[18,0,18,14],[23,0,23,13],[24,0,24,14],[19,0,19,13],[22,0,22,13],[20,0,20,13],[21,0,21,13],[25,0,25,1],[25,2,25,8],[25,9,25,14],[27,0,27,1],[28,0,28,1],[29,0,29,1],[26,2,26,8],[27,2,27,8],[28,2,28,8],[29,2,29,8],[26,9,26,14],[27,9,27,14],[28,9,28,14],[29,9,29,14],[26,0,26,1],[11,0,11,14],[6,0,6,14],[13,0,13,2],[14,0,14,2],[12,0,12,7],[13,3,13,7],[14,3,14,7],[15,0,15,2],[16,0,16,2],[15,3,15,7],[16,3,16,7],[13,8,13,10],[14,8,14,10],[15,8,15,10],[16,8,16,10],[12,8,12,14],[13,11,13,14],[14,11,14,14],[15,11,15,14],[16,11,16,14],[1,0,1,14],[2,0,2,14],[5,0,5,11],[5,12,5,14],[7,0,7,8],[8,0,8,8],[10,0,10,8],[7,9,7,14],[8,9,8,14],[10,9,10,14],[9,0,9,8],[9,9,9,14],[34,3,34,6],[34,7,34,12],[34,13,34,14],[50,12,50,14],[41,0,44,1],[46,0,46,1],[46,2,46,3],[46,4,46,7],[46,8,46,11],[47,0,47,1],[47,2,47,3],[47,4,47,7],[35,7,35,12],[35,13,35,14],[36,7,36,12],[36,13,36,14],[35,0,35,6],[36,0,36,6],[0,12,0,14],[70,0,70,14],[66,13,66,14],[67,13,67,14],[68,13,68,14],[73,11,73,14],[74,11,74,14],[69,0,69,7],[38,0,38,14],[73,5,73,10],[74,5,74,10],[60,13,60,14],[61,13,61,14],[62,13,62,14],[63,13,63,14],[69,11,69,14],[57,0,57,6],[57,7,57,14],[58,0,58,14],[64,13,64,14],[59,13,59,14],[17,3,17,7],[33,7,33,12],[17,8,17,10],[17,11,17,14],[83,0,83,14],[84,0,84,14],[85,0,85,14],[86,0,86,14],[55,0,55,6],[55,7,55,14],[30,0,30,1],[72,11,72,14],[65,13,65,14],[68,2,68,7],[77,11,79,14],[79,0,79,8],[77,9,77,10],[79,9,79,10],[78,0,78,8],[77,0,77,8],[56,7,56,14],[56,0,56,6],[33,0,34,2],[33,3,33,6],[17,0,17,2],[30,2,30,8],[33,13,33,14]]}
[]
["Заявка №"]
["на получение поручительства"]
["г. Краснодар",null,null,null,null,null,null,null,null,null,null,null,null,null,"\"__\"_________",null,null,null,null,null,null,null,"ДАТУ И НОМЕР  СТАВИТ СОТРУДНИК ФОНДА ПРИ ПОЛУЧЕНИИ ПАКЕТА ДОКУМЕНТОВ"]
["Просим Вас предоставить Поручительство по кредиту, учитывая нижеуказанную информацию о Заемщике:"]
["Обращение в Фонд развития бизнеса Краснодарского края",null,null,null,null,null,null,null,null,null,null,null,"Первое",null,null,null,"Первое"]
["1. Сведения об организации-Заемщике:",null,null,null,null,null,null,null,null,null,null,null,null,null,null,null,"Повторное"]
["Полное наименование организации в соответствии с учредительными документами "]
["Идентификационный номер налогоплательщика (ИНН) "]
["Основной государственный регистрационный номер (ОГРН)"]
["Дата регистрации: "]
["2. Адрес организации Заемщика"]
["Юридический",null,null,null,null,null,null,null,"Фактический"]
["Муниципальный район: ",null,null,null,null,null,null,null,"Муниципальный район: "]
["Населенный пункт: ",null,null,null,null,null,null,null,"Населенный пункт: "]
["Улица ",null,null,null,null,null,null,null,"Улица "]
["№ дома",null,null,null,null,null,null,null,"№ дома"]
["№ офиса (кв.)",null,null,null,null,null,null,null,"№ офиса (кв.)"]
["3. Основные учредители  (акционеры, участники), владеющие более 5% акций (долей) в Уставном капитале организации- Заемщике"]
["ФИО/Наименование юр.лица",null,null,null,null,null,null,null,null,null,null,null,null,null,"Доля, в %"]
[]
[]
[]
["ПУСТЫЕ СТРОКИ СКРЫТЬ!!!!"]
["4. Сведения о руководителях организации-заемщика, уполномоченных заключать кредитные и обеспечивающие договоры, главном бухгалтере (при наличии)"]
["Должность",null,"ФИО",null,null,null,null,null,null,"Контактная информация (телефон, электронная почта и т.п.)"]
[null,null,null,null,null,null,null,null,null,null,null,null,null,null,null,"директор"]
[null,null,null,null,null,null,null,null,null,null,null,null,null,null,null,"генеральный директор"]
[null,null,null,null,null,null,null,null,null,null,null,null,null,null,null,"главный бухгалтер"]
[null,null,null,null,null,null,null,null,null,null,null,null,null,null,null,"бухгалтер"]
[null,null,"ПУСТЫЕ СТРОКИ СКРЫТЬ!!!!",null,null,null,null,null,null,null,null,null,null,null,null,"прочее"]
["5. Режим налогообложения",null,null,null,null,null,null,"Виды деятельности Заемщика с указанием ОКВЭД",null,null,null,null,null,"Доля в доходе (%)"]
["Общая система налогообложения ",null,null,null,null,null,null,"-",null,null,null,null,null,"-",null,null,null,null,null,null,null,null,"УКАЗЫВАЮТСЯ ВСЕ ВИДЫ В СООТВЕТСТВИИ С ВЫПИСКОЙ ИЗ ЕГРЮЛ/ЕГРИП"]
["Упрощенная система налогообложения ",null,null," Доходы  6%",null,null,null,"-",null,null,null,null,null,"-"]
[null,null,null,"Доходы – расходы  15%",null,null,null,"-",null,null,null,null,null,"-"]
["Единый налог на вмененный доход",null,null,null,null,null,null,"-",null,null,null,null,null,"-"]
["Единый сельскохозяйственный налог ",null,null,null,null,null,null,"-",null,null,null,null,null,"-"]
["6. Краткое описание бизнеса с указанием причин необходимости получения льготного кредита",null,null,null,null,null,null,null,null,null,null,null,null,null,null,"Прочее"]
[]
["Численность работников на текущую дату (чел.)",null,null,null,null,null,null,null,null,null,null,null,null,null,null,"да",null,null,null,null,null,null,"ДАННЫЕ ДОЛЖНЫ СОВПАДАТЬ С ИНФОРМАЦИЕЙ О СООТВЕТСТВИИ ЗАЕМЩИКА КРИТЕРИЯМ ОТНЕСЕНИЯ К СУБЪЕКТАМ МСП"]
["7. Сведения о наличии действующих и действовавших за последние 360 календарных дней, предшествующих дате обращения за поручительством фонда, кредитных, факторинговых, лизинговых договоров, договоров займа, банковских гарантий, в т.ч. оформленных на Заемщика - индивидуального предпринимателя как на физическое лицо:"]
["Наименование кредитора, вид обязательства",null,"Сумма по договору, руб.",null,"Остаток задолженности на текущую дату, руб.",null,null,null,"Срок возврата по договору (либо дата фактического исполнения обязательств)",null,null,null,"Сумма и вид обеспечения (залог (указывается вид имущества - наименование, технические характеристики, год выпуска, собственник), поручительство, банковская гарантия, иное)"]
[]
[]
[]
[null,null,null,null,null,null,null,null,null,null,null,null,null,null,null,null,null,null,null,null,null,null,"ПО ВСЕМ УКАЗЫВАЕМЫМ ДОГОВОРАМ, КРОМЕ ОФОРМЛЕННЫХ КАК НА ФИЗ. ЛИЦО,  ПРИЛАГАЮТСЯ СПРАВКИ"]
[]
[]
[]
[null,null,null,null,"ПУСТЫЕ СТРОКИ СКРЫТЬ!!!"]
["Итого:",null,{"$f":"SUM(C46:D50)","v":0},null,{"$f":"SUM(E46:H50)","v":0}]
["8. Информация о предоставляемом кредите:",null,null,null,null,null,null,null,null,null,null,null,null,null,null,"Прочее",null,null,null,null,null,null,"ДАННЫЕ ДОЛЖНЫ СОВПАДАТЬ С ЗАКЛЮЧЕНИЕМ И ПРОТОКОЛОМ"]
["Вид кредита",null,null,null,null,null,null,null,null,null,null,null,null,null,null,null,null,null,null,null,null,null,"указывается форма выдачи: \"ВКЛ\", \"НКЛ\", \"ОВЕРДРАФТ\", \"ЕДИНОВРЕМЕННЫЙ КРЕДИТ\"  И Т.П."]
["Сумма испрашиваемого кредита, руб.:"]
["Предполагаемый срок кредита (кредитной линии):"]
["Предполагаемый срок договора поручительства:"]
["Процентная ставка"]
["Цель кредитования"]
["9. Информация об имуществе Заемщика, которое предоставлено в качестве залога:"]
["№ п/п","Вид залога","Наименование, технические характеристики, год выпуска",null,null,null,null,null,"Рыночная стоимость, руб.","Залоговый дисконт,%","Залоговая стоимость, руб.","Собственник","Последующий залог","Основание  оценки"]
[null,null,null,null,null,null,null,null,null,null,{"$f":"I61*(1-J61)","v":0},null,null,null,null,"недвижимость","да","отчет об оценке независимого оценщика",null,null,null,null,"ДЛЯ ИМУЩЕСТВА УКАЗЫВАЮТСЯ ИДЕНТИФИКАЦИОННЫЕ ПРИЗНАКИ (VIN, ГОС.НОМЕРА, АДРЕСА И Т.П. В ЗАВИСИМОСТИ ОТ ВИДА ИМУЩЕСТВА)"]
[null,null,null,null,null,null,null,null,null,null,0,null,null,null,null,"оборудование","нет","оценка кредитного специалиста"]
[null,null,null,null,null,null,null,null,null,null,0,null,null,null,null,"автотранспорт",null,"оценка залогового специалиста"]
[null,null,null,null,null,null,null,null,null,null,0,null,null,null,null,"спец.техника",null,"согласно бухгалтерскому учету залогодателя"]
[null,null,null,null,null,null,null,null,null,null,0,null,null,null,null,"ТМЦ"]
[null,null,null,null,null,null,null,null,null,null,0,null,null,null,null,"прочее"]
[null,null,null,null,null,null,null,null,null,null,0]
[null,null,null,null,null,null,null,null,null,null,0]
[null,null,"ПУСТЫЕ СТРОКИ СКРЫТЬ!!!",null,null,null,null,null,null,null,0]
["Итого:",null,null,null,null,null,null,null,{"$f":"SUM(I61:I69)","v":0},null,{"$f":"SUM(K61:K69)","v":0}]
["10. Информация о поручителях по сделке:"]
["ФИО",null,null,null,null,"Контактная информация",null,null,null,null,null,"Мотивы поручительства",null,null,null,null,null,null,null,null,null,null,"УКАЗЫВАЮТСЯ В СООТВЕТСТВИИ С ПРОТОКОЛОМ"]
[null,null,null,null,null,null,null,null,null,null,null,null,null,null,null,null,null,null,null,null,null,null,"ДЛЯ КАЖДОГО НЕОБХОДИМО ПРИЛОЖИТЬ СОГЛАСИЕ НА БКИ"]
[]
[]
["ПУСТЫЕ СТРОКИ СКРЫТЬ!!!"]
["11. Итоговые показатели сделки"]
["Соотношение собственного залогового обеспечения к сумме кредита*",null,null,null,null,null,null,null,null,{"$f":"K70/H54","v":{"$error":"#DIV/0!"}},null," * В случае, если залог является последующим, в расчет обеспеченности собственным залогом принимается залоговая стоимость имущества, уменьшенная на величину основного долга на дату подачи заявки (максимального возможного лимита выдачи по договору) по каждому из предыдущих кредитов (займов). В случае, если одним и тем же залогом обеспечиваются 2 и более кредита (займа), выданные (выдаваемые) под поручительство Фонда, расчет обеспеченности проводится для общей суммы основного долга (максимально возможных лимитов выдачи по договорам) по кредитам (займам), обеспеченным одним и тем же залогом и поручительствами Фонда"]
["Сумма испрашиваемого поручительства Фонда"]
["Соотношение суммы поручительства Фонда к сумме кредита",null,null,null,null,null,null,null,null,{"$f":"J79/H54","v":{"$error":"#DIV/0!"}}]
["Заключение службы безопасности Банка",null,null,null,null,null,null,null,null,null,null,null,null,null,null,null,"положительное",null,null,null,null,null,"УКАЗЫВАЮТСЯ ВЫВОДЫ ИЗ ЗАКЛЮЧЕНИЙ СЛУЖБ БАНКА "]
["Заключение залоговой службы Банка",null,null,null,null,null,null,null,null,null,null,null,null,null,null,null,"отрицательное"]
["Заключение юридической службы Банка",null,null,null,null,null,null,null,null,null,null,null,null,null,null,null,"не требуется"]
["Настоящим документом Заемщик (Принципал) подтверждает, что он:\n1) зарегистрирован(а) и осуществляет деятельность на территории Краснодарского края не менее 6 (шести) месяцев;\n2) нуждается в финансировании в связи с ухудшением его финансово-экономического положения, вызванном распространением новой короновирусной инфекции (с обоснованием); \n3) имеет положительную кредитную историю за последние 360 дней, а именно: не имеет просроченной задолженности (под просроченной задолженностью понимается задолженность по основному долгу и/или процентам, по которой суммарное количество дней просрочки за последние 360 дней отдельно по каждому кредитному договору, договору лизинга, договору займа, заключенным с финансовыми организациями, превышает 30 (тридцать) дней;\n4) привлекает кредит (заемные средства) не в целях оплаты текущих расходов на обслуживание ранее взятых кредитов, займов (за исключением кредитов (займов), направляемых на рефинансирование ссудной задолженности (основного долга) в сторонней финансовой организации, за исключением получаемых с пониженной процентной ставкой относительно действующей и/или с увеличением срока возврата либо в той же финансовой организации, получаемых с пониженной процентной ставкой относительно действующей без изменения срока возврата, либо в той же финансовой организации, получаемых с пониженной процентной ставкой относительно действующей с дополнительным финансированием) и договоров лизинга, и не в целях, не связанных с осуществлением Заемщиком основной производственной деятельности;\n5) не является кредитной организацией, страховой организацией (за исключением потребительских кооперативов), инвестиционным фондом, негосударственным пенсионным фондом, профессиональным участником рынка ценных бумаг, ломбардом; не является участником соглашений о разделе продукции, не осуществляет предпринимательскую деятельность в сфере игорного бизнеса; не является в порядке, установленном законодательством Российской Федерации о валютном регулировании и валютном контроле, нерезидентом Российской Федерации, за исключением случаев, предусмотренных международными договорами Российской Федерации; не осуществляет производство и (или) реализацию подакцизных товаров, а также добычу и (или) реализацию полезных ископаемых, за исключением общераспространенных полезных ископаемых;                                                                                                                                                                                                                                                                                                                                                                                                                                                                                                                                                                                                                                                                                                                                           (Указанное в настоящем пункте не распространяются на субъектов МСП, осуществляющих деятельность в следующих отраслях:\n- сельское хозяйство, включая производство сельскохозяйственной продукции, а также предоставление услуг в сельском хозяйстве, в том числе в целях обеспечения импортозамещения и развития несырьевого экспорта;\n- обрабатывающее производство, в том числе производство пищевых продуктов, лекарственных средств, средств защиты и дезинфекции;\n- туристская деятельность и деятельность в области туристской индустрии в целях развития внутреннего и въездного туризма;\n- транспортировка и хранение)\n",null,null,null,null,null,null,null,null,null,null,null,null,null,null,null,"не соответствуют методике кредитования субъектов МСП Банка"]
["6) соответствует критериям, применяемым Федеральным законом от 24 июля 2007 года № 209-ФЗ «О развитии малого и среднего предпринимательства в Российской Федерации» к малым предприятиям, в том числе к микропредприятиям, и средним предприятиям;\n7) предоставляет полный пакет достоверных документов, сведений и информации, определенных Фондом\n"]
["Банк-партнер и Заемщик (Принципал) несут ответственность за предоставление ими недостоверной информации (документов) согласно действующему законодательству Российской Федерации. Банк не несет ответственности за предоставление  недостоверной информации (документов) Заемщиком (Принципалом).\nНа получение информационных сообщений об услугах, оказываемых Фондом развития бизнеса Краснодарского края,  [     ]   - согласен;    [     ] - не согласен.\n Информационные сообщения прошу присылать на\n     [     ] - e-mail , указанный в настоящей анкете;                                                                                                                \n     [     ] - телефон, указанный в настоящей анкете  (нужное отметить знаком V).\n"]
["Подписывая настоящую заявку на поручение поручительства, Заемщик предоставляет/не предоставляет (нужное подчеркнуть) Фонду развития бизнеса Краснодарского края (далее - Фонд)  право на передачу конфиденциальной информации, ставшей известной Фонду в процессе заключения и исполнения договора поручительства Фонда, в АО «Корпорация МСП» по запросу АО «Корпорация МСП» либо во исполнение положений законодательства Российской Федерации.\n\n\nОт Заемщика:\nОбщество с ограниченной ответственностью «....»  (Индивидуальный предприниматель)\n             \nРуководитель\n_____________________ (__________________________)\n     (подпись, печать)                         (ФИО)\n \n «Согласовано»:\nОт Банка-партнера:  _________________________________________\n               (полное наименование Банка-партнера)\n_______________________ (________________________)\n         (подпись, печать)                      (ФИО)\n"]

{"sheet":"Решение (не редактировать)!!!!!","index":1,"n_rows":82,"n_cols":25,"rows_kept":82,"cut":false,"hidden":true,"merged":[[7,0,7,8],[7,9,7,14],[8,0,8,8],[8,9,8,14],[9,0,9,8],[9,9,9,14],[0,12,0,14],[1,0,1,14],[2,0,2,14],[5,0,5,11],[5,12,5,14],[6,0,6,14],[14,0,14,2],[14,3,14,7],[14,8,14,10],[14,11,14,14],[15,0,15,2],[15,3,15,7],[15,8,15,10],[15,11,15,14],[10,0,10,8],[10,9,10,14],[11,0,11,14],[12,0,12,7],[12,8,12,14],[13,0,13,2],[13,3,13,7],[13,8,13,10],[13,11,13,14],[18,0,18,14],[19,0,19,13],[20,0,20,13],[21,0,21,13],[22,0,22,13],[23,0,23,13],[16,0,16,2],[16,3,16,7],[16,8,16,10],[16,11,16,14],[17,0,17,2],[17,3,17,7],[17,8,17,10],[17,11,17,14],[31,0,31,6],[31,7,31,14],[32,0,32,6],[32,7,32,14],[33,0,33,6],[33,7,33,14],[77,0,78,3],[69,0,70,3],[71,0,72,3],[68,0,68,3],[69,11,70,12],[65,0,67,14],[68,11,68,12],[68,13,68,14],[68,4,68,10],[34,0,34,6],[34,7,34,14],[35,0,35,6],[35,7,35,14],[37,0,37,14],[38,2,38,7],[38,13,38,14],[39,2,39,7],[39,13,39,14],[40,2,40,7],[40,13,40,14],[36,0,36,6],[36,7,36,14],[44,2,44,7],[44,13,44,14],[45,2,45,7],[45,13,45,14],[46,2,46,7],[46,13,46,14],[41,2,41,7],[41,13,41,14],[42,2,42,7],[42,13,42,14],[43,2,43,7],[43,13,43,14],[54,0,54,10],[51,11,51,14],[52,11,52,14],[51,0,51,10],[52,0,52,10],[47,2,47,7],[47,13,47,14],[48,0,48,7],[48,11,48,14],[49,0,49,14],[50,11,50,14],[50,0,50,10],[30,0,30,14],[63,0,63,4],[63,5,63,14],[64,0,64,4],[64,5,64,14],[59,0,59,4],[59,5,59,14],[61,0,61,4],[61,5,61,14],[60,5,60,14],[62,0,62,4],[62,5,62,14],[60,0,60,4],[55,0,55,14],[56,0,56,8],[56,9,56,10],[56,11,58,14],[57,0,57,8],[57,9,57,10],[58,0,58,8],[58,9,58,10],[53,11,53,14],[54,11,54,14],[53,0,53,10],[25,0,25,13],[26,0,26,13],[27,0,27,13],[28,0,28,13],[29,0,29,13],[24,14,24,15],[25,14,25,15],[26,14,26,15],[27,14,27,15],[28,14,28,15],[29,14,29,15],[24,0,24,13],[69,13,70,14],[71,13,72,14],[73,13,74,14],[75,13,76,14],[77,13,78,14],[79,13,80,14],[79,0,80,3],[81,0,82,3],[81,4,82,10],[79,4,80,10],[77,4,78,10],[75,4,76,10],[73,0,74,3],[75,0,76,3],[81,11,82,12],[81,13,82,14],[79,11,80,12],[77,11,78,12],[75,11,76,12],[73,4,74,10],[73,11,74,12],[71,4,72,10],[71,11,72,12],[69,4,70,10]]}
[]
["ПРОТОКОЛ №"]
["заседания комиссии по вопросам предоставления поручительств"]
["г. Краснодар",null,null,null,null,null,null,null,null,null,null,null,"\"______\"___________________",null,null,null,null,null,null,null,null,null,"ДАТА ЗАСЕДАНИЯ КОМИССИИ"]
[]
["Обращение в Фонд развития бизнеса Краснодарского края",null,null,null,null,null,null,null,null,null,null,null,{"$f":"'Cведения о заемщике'!M6:O6","v":"Первое"},null,null,null,"Первое"]
["1. Сведения об организации-Заемщике:",null,null,null,null,null,null,null,null,null,null,null,null,null,null,null,"Повторное"]
["Полное наименование организации в соответствии с учредительными документами ",null,null,null,null,null,null,null,null,{"$f":"'Cведения о заемщике'!J8:O8","v":0}]
["Идентификационный номер налогоплательщика (ИНН) ",null,null,null,null,null,null,null,null,{"$f":"'Cведения о заемщике'!J9:O9","v":0}]
["Основной государственный регистрационный номер (ОГРН)",null,null,null,null,null,null,null,null,{"$f":"'Cведения о заемщике'!J10:O10","v":0}]
["Дата регистрации: ",null,null,null,null,null,null,null,null,{"$f":"'Cведения о заемщике'!J11:O11","v":0}]
["2. Адрес организации Заемщика"]
["Юридический",null,null,null,null,null,null,null,"Фактический"]
["Муниципальный район: ",null,null,{"$f":"'Cведения о заемщике'!D14:H14","v":0},null,null,null,null,"Муниципальный район: ",null,null,{"$f":"'Cведения о заемщике'!L14:O14","v":0}]
["Населенный пункт: ",null,null,{"$f":"'Cведения о заемщике'!D15:H15","v":0},null,null,null,null,"Населенный пункт: ",null,null,{"$f":"'Cведения о заемщике'!L15:O15","v":0}]
["Улица ",null,null,{"$f":"'Cведения о заемщике'!D16:H16","v":0},null,null,null,null,"Улица ",null,null,{"$f":"'Cведения о заемщике'!L16:O16","v":0}]
["№ дома",null,null,{"$f":"'Cведения о заемщике'!D17:H17","v":0},null,null,null,null,"№ дома",null,null,{"$f":"'Cведения о заемщике'!L17:O17","v":0}]
["№ офиса (кв.)",null,null,{"$f":"'Cведения о заемщике'!D18:H18","v":0},null,null,null,null,"№ офиса (кв.)",null,null,{"$f":"'Cведения о заемщике'!L18:O18","v":0}]
["3. Основные учредители (акционеры, участники), владеющие более 5% акций (долей) в Уставном капитале организации - Заемщике"]
["ФИО/Наименование юр.лица",null,null,null,null,null,null,null,null,null,null,null,null,null,"Доля, в %"]
[{"$f":"'Cведения о заемщике'!A21:N21","v":0},null,null,null,null,null,null,null,null,null,null,null,null,null,{"$f":"'Cведения о заемщике'!O21","v":0}]
[{"$f":"'Cведения о заемщике'!A22:N22","v":0},null,null,null,null,null,null,null,null,null,null,null,null,null,{"$f":"'Cведения о заемщике'!O22","v":0}]
[{"$f":"'Cведения о заемщике'!A23:N23","v":0},null,null,null,null,null,null,null,null,null,null,null,null,null,{"$f":"'Cведения о заемщике'!O23","v":0}]
["ПУСТЫЕ СТРОКИ СКРЫТЬ!!!!",null,null,null,null,null,null,null,null,null,null,null,null,null,{"$f":"'Cведения о заемщике'!O24","v":0}]
["4. Виды деятельности Заемщика с указанием ОКВЭД",null,null,null,null,null,null,null,null,null,null,null,null,null,"Доля в доходе (%)"]
[{"$f":"'Cведения о заемщике'!H33:M33","v":{"$error":"#VALUE!"}},null,null,null,null,null,null,null,null,null,null,null,null,null,{"$f":"'Cведения о заемщике'!N33:O33","v":0}]
[{"$f":"'Cведения о заемщике'!H34:M34","v":{"$error":"#VALUE!"}},null,null,null,null,null,null,null,null,null,null,null,null,null,{"$f":"'Cведения о заемщике'!N34:O34","v":0}]
[{"$f":"'Cведения о заемщике'!H35:M35","v":{"$error":"#VALUE!"}},null,null,null,null,null,null,null,null,null,null,null,null,null,{"$f":"'Cведения о заемщике'!N35:O35","v":0}]
[{"$f":"'Cведения о заемщике'!H36:M36","v":{"$error":"#VALUE!"}},null,null,null,null,null,null,null,null,null,null,null,null,null,{"$f":"'Cведения о заемщике'!N36:O36","v":0}]
[{"$f":"'Cведения о заемщике'!H37:M37","v":{"$error":"#VALUE!"}},null,null,null,null,null,null,null,null,null,null,null,null,null,{"$f":"'Cведения о заемщике'!N37:O37","v":0}]
["5. Информация о предоставляемом кредите:",null,null,null,null,null,null,null,null,null,null,null,null,null,null,"Прочее",null,null,null,null,null,null,"ДАННЫЕ ДОЛЖНЫ СОВПАДАТЬ С ЗАКЛЮЧЕНИЕМ И ПРОТОКОЛОМ"]
["Вид кредита",null,null,null,null,null,null,{"$f":"'Cведения о заемщике'!H53:O53","v":0},null,null,null,null,null,null,null,null,null,null,null,null,null,null,"указывается форма выдачи: \"ВКЛ\", \"НКЛ\", \"ОВЕРДРАФТ\", \"ЕДИНОВРЕМЕННЫЙ КРЕДИТ\"  И Т.П."]
["Сумма испрашиваемого кредита, руб.:",null,null,null,null,null,null,{"$f":"'Cведения о заемщике'!H54:O54","v":0}]
["Предполагаемый срок кредита:",null,null,null,null,null,null,{"$f":"'Cведения о заемщике'!H55:O55","v":0}]
["Предполагаемый срок договора поручительства:",null,null,null,null,null,null,{"$f":"'Cведения о заемщике'!H56:O56","v":0}]
["Процентная ставка",null,null,null,null,null,null,{"$f":"'Cведения о заемщике'!H57:O57","v":0}]
["Цель кредитования",null,null,null,null,null,null,{"$f":"'Cведения о заемщике'!H58:O58","v":0}]
["6. Информация об имуществе Заемщика, которое предоставлено в качестве залога:"]
["№ п/п","Вид залога","Наименование, технические характеристики, год выпуска",null,null,null,null,null,"Рыночная стоимость, руб.","Залоговый дисконт,%","Залоговая стоимость","Собственник","Последующий залог","Основание  оценки"]
[{"$f":"'Cведения о заемщике'!A61","v":0},{"$f":"'Cведения о заемщике'!B61","v":0},{"$f":"'Cведения о заемщике'!C61:H61","v":0},null,null,null,null,null,{"$f":"'Cведения о заемщике'!I61","v":0},{"$f":"'Cведения о заемщике'!J61","v":0},{"$f":"I40*(1-J40)","v":0},{"$f":"'Cведения о заемщике'!L61","v":0},{"$f":"'Cведения о заемщике'!M61","v":0},{"$f":"'Cведения о заемщике'!N61:O61","v":0},null,"недвижимость","да","отчет об оценке независимого оценщика",null,null,null,null,"ДЛЯ ИМУЩЕСТВА УКАЗЫВАЮТСЯ ИДЕНТИФИКАЦИОННЫЕ ПРИЗНАКИ (VIN, ГОС.НОМЕРА, АДРЕСА И Т.П. В ЗАВИСИМОСТИ ОТ ВИДА ИМУЩЕСТВА)"]
[{"$f":"'Cведения о заемщике'!A62","v":0},{"$f":"'Cведения о заемщике'!B62","v":0},{"$f":"'Cведения о заемщике'!C62:H62","v":0},null,null,null,null,null,{"$f":"'Cведения о заемщике'!I62","v":0},{"$f":"'Cведения о заемщике'!J62","v":0},0,{"$f":"'Cведения о заемщике'!L62","v":0},{"$f":"'Cведения о заемщике'!M62","v":0},{"$f":"'Cведения о заемщике'!N62:O62","v":0},null,"оборудование","нет","оценка кредитного специалиста"]
[{"$f":"'Cведения о заемщике'!A63","v":0},{"$f":"'Cведения о заемщике'!B63","v":0},{"$f":"'Cведения о заемщике'!C63:H63","v":0},null,null,null,null,null,{"$f":"'Cведения о заемщике'!I63","v":0},{"$f":"'Cведения о заемщике'!J63","v":0},0,{"$f":"'Cведения о заемщике'!L63","v":0},{"$f":"'Cведения о заемщике'!M63","v":0},{"$f":"'Cведения о заемщике'!N63:O63","v":0},null,"автотранспорт",null,"оценка залогового специалиста"]
[{"$f":"'Cведения о заемщике'!A64","v":0},{"$f":"'Cведения о заемщике'!B64","v":0},{"$f":"'Cведения о заемщике'!C64:H64","v":0},null,null,null,null,null,{"$f":"'Cведения о заемщике'!I64","v":0},{"$f":"'Cведения о заемщике'!J64","v":0},0,{"$f":"'Cведения о заемщике'!L64","v":0},{"$f":"'Cведения о заемщике'!M64","v":0},{"$f":"'Cведения о заемщике'!N64:O64","v":0},null,"спец.техника",null,"согласно бухгалтерскому учету залогодателя"]
[{"$f":"'Cведения о заемщике'!A65","v":0},{"$f":"'Cведения о заемщике'!B65","v":0},{"$f":"'Cведения о заемщике'!C65:H65","v":0},null,null,null,null,null,{"$f":"'Cведения о заемщике'!I65","v":0},{"$f":"'Cведения о заемщике'!J65","v":0},0,{"$f":"'Cведения о заемщике'!L65","v":0},{"$f":"'Cведения о заемщике'!M65","v":0},{"$f":"'Cведения о заемщике'!N65:O65","v":0},null,"ТМЦ"]
[{"$f":"'Cведения о заемщике'!A66","v":0},{"$f":"'Cведения о заемщике'!B66","v":0},{"$f":"'Cведения о заемщике'!C66:H66","v":0},null,null,null,null,null,{"$f":"'Cведения о заемщике'!I66","v":0},{"$f":"'Cведения о заемщике'!J66","v":0},0,{"$f":"'Cведения о заемщике'!L66","v":0},{"$f":"'Cведения о заемщике'!M66","v":0},{"$f":"'Cведения о заемщике'!N66:O66","v":0},null,"прочее"]
[{"$f":"'Cведения о заемщике'!A67","v":0},{"$f":"'Cведения о заемщике'!B67","v":0},{"$f":"'Cведения о заемщике'!C67:H67","v":0},null,null,null,null,null,{"$f":"'Cведения о заемщике'!I67","v":0},{"$f":"'Cведения о заемщике'!J67","v":0},0,{"$f":"'Cведения о заемщике'!L67","v":0},{"$f":"'Cведения о заемщике'!M67","v":0},{"$f":"'Cведения о заемщике'!N67:O67","v":0}]
[{"$f":"'Cведения о заемщике'!A68","v":0},{"$f":"'Cведения о заемщике'!B68","v":0},{"$f":"'Cведения о заемщике'!C68:H68","v":0},null,null,null,null,null,{"$f":"'Cведения о заемщике'!I68","v":0},{"$f":"'Cведения о заемщике'!J68","v":0},0,{"$f":"'Cведения о заемщике'!L68","v":0},{"$f":"'Cведения о заемщике'!M68","v":0},{"$f":"'Cведения о заемщике'!N68:O68","v":0}]
[{"$f":"'Cведения о заемщике'!A69","v":0},{"$f":"'Cведения о заемщике'!B69","v":0},"ПУСТЫЕ СТРОКИ СКРЫТЬ!!!",null,null,null,null,null,{"$f":"'Cведения о заемщике'!I69","v":0},{"$f":"'Cведения о заемщике'!J69","v":0},0,{"$f":"'Cведения о заемщике'!L69","v":0},{"$f":"'Cведения о заемщике'!M69","v":0},{"$f":"'Cведения о заемщике'!N69:O69","v":0}]
["Итого:",null,null,null,null,null,null,null,{"$f":"SUM(I40:I48)","v":0},null,{"$f":"SUM(K40:K48)","v":0}]
["7. Информация о поручителях по сделке:"]
["ФИО",null,null,null,null,null,null,null,null,null,null,"Мотивы поручительства",null,null,null,null,null,null,null,null,null,null,"УКАЗЫВАЮТСЯ В СООТВЕТСТВИИ С ПРОТОКОЛОМ"]
[{"$f":"'Cведения о заемщике'!A73:E73","v":0},null,null,null,null,null,null,null,null,null,null,{"$f":"'Cведения о заемщике'!L73:O73","v":0},null,null,null,null,null,null,null,null,null,null,"ДЛЯ КАЖДОГО НЕОБХОДИМО ПРИЛОЖИТЬ СОГЛАСИЕ НА БКИ"]
[{"$f":"'Cведения о заемщике'!A74:E74","v":0},null,null,null,null,null,null,null,null,null,null,{"$f":"'Cведения о заемщике'!L74:O74","v":0}]
[{"$f":"'Cведения о заемщике'!A75:E75","v":0},null,null,null,null,null,null,null,null,null,null,{"$f":"'Cведения о заемщике'!L75:O75","v":0}]
["ПУСТЫЕ СТРОКИ СКРЫТЬ!!!",null,null,null,null,null,null,null,null,null,null,{"$f":"'Cведения о заемщике'!L76:O76","v":0}]
["8. Итоговые показатели сделки"]
["Соотношение собственного залогового обеспечения к сумме кредита*",null,null,null,null,null,null,null,null,{"$f":"'Cведения о заемщике'!J78:K78","v":{"$error":"#DIV/0!"}},null,"Примечание (при необходимости):"]
["Сумма испрашиваемого поручительства Фонда",null,null,null,null,null,null,null,null,{"$f":"'Cведения о заемщике'!J79:K79","v":0}]
["Соотношение суммы поручительства Фонда к сумме кредита",null,null,null,null,null,null,null,null,{"$f":"'Cведения о заемщике'!J80:K80","v":{"$error":"#DIV/0!"}}]
["Заключение заместителя по экономической безопасности",null,null,null,null,null,null,null,null,null,null,null,null,null,null,null,"положительное",null,null,null,null,null,"УКАЗЫВАЮТСЯ ВЫВОДЫ ИЗ ЗАКЛЮЧЕНИЙ СЛУЖБ БАНКА "]
["Комментарии (при необходимости)"]
["Заключение экономического отдела",null,null,null,null,null,null,null,null,null,null,null,null,null,null,null,"отрицательное"]
["Комментарии (при необходимости)"]
["Заключение юридического отдела",null,null,null,null,null,null,null,null,null,null,null,null,null,null,null,"не требуется"]
["Комментарии (при необходимости)",null,null,null,null,null,null,null,null,null,null,null,null,null,null,null,"не соответствуют методике кредитования субъектов МСП Банка"]
["РЕШЕНИЕ КОМИССИИ ПО ВОПРОСАМ ПРЕДОСТАВЛЕНИЯ ПОРУЧИТЕЛЬСТВ"]
[]
[]
["ФИО",null,null,null,"ДОЛЖНОСТЬ",null,null,null,null,null,null,"РЕШЕНИЕ",null,"ПОДПИСЬ"]
["ПИСТУНОВА ЕЛЕНА АЛЕКСЕЕВНА",null,null,null,"Исполнительный директор унитарной некоммерческой организации «Фонд развития бизнеса Краснодарского края», председатель комиссии",null,null,null,null,null,null,null,null,null,null,null,null,null,null,null,null,null,null,null,"за"]
[null,null,null,null,null,null,null,null,null,null,null,null,null,null,null,null,null,null,null,null,null,null,null,null,"против"]
["КОВАЛЕНКО ОКСАНА ВАДИМОВНА",null,null,null,"Исполнительный директор унитарной некоммерческой организации – микрокредитной компании «Фонд микрофинансирования субъектов малого и среднего предпринимательства Краснодарского края», заместитель председателя комиссии",null,null,null,null,null,null,null,null,null,null,null,null,null,null,null,null,null,null,null,"воздержался"]
[]
["ХРАПАЛЬ СЕРГЕЙ СТАНИСЛАВОВИЧ",null,null,null,"Первый заместитель исполнительного директор унитарной некоммерческой организации «Фонд развития бизнеса Краснодарского края», секретарь комиссии."]
[]
["СОРОКИН МАКСИМ ЮРЬЕВИЧ",null,null,null,"Заместитель исполнительного директора по экономической безопасности унитарной некоммерческой организации «Фонд развития бизнеса Краснодарского края», член комиссии;"]
[]
["САМОЙЛОВА АННА ЕВГЕНЬЕВНА",null,null,null,"Начальник юридического отдела унитарной некоммерческой организации «Фонд развития бизнеса Краснодарского края», член комиссии"]
[]
["АСРИЕВА ИРИНА СЕМЕНОВНА",null,null,null,"Главный бухгалтер унитарной некоммерческой организации «Фонд развития бизнеса Краснодарского края», член комиссии"]
[]
["ЧУПРИНА ВЛАДИСЛАВ НИКОЛАЕВИЧ",null,null,null,"Первый заместитель исполнительного директора унитарной некоммерческой организации – микрокредитной компании «Фонд микрофинансирования субъектов малого и среднего предпринимательства Краснодарского края», член комиссии"]